[Event "Fast Chess"]
[Site "ChessKid.com"]
[Date "2020.04.15"]
[Round "1"]
[White "Sasse, Gabriel"]
[Black "Li, Patrick"]
[Result "1-0"]
[ECO "C55"]
[WhiteElo "1238"]
[BlackElo "995"]
[PlyCount "39"]
[EventDate "2020.??.??"]
[TimeControl "900"]
[WhiteClock "0:12:17"]
[BlackClock "0:14:10"]

1. e4 {[%emt 0:00:00]} e5 {[%emt 0:00:02]} 2. Nf3 {[%emt 0:00:01]} Nc6 {
[%emt 0:00:03]} 3. Bc4 {[%emt 0:00:01]} h6 {[%emt 0:00:06]} 4. Nc3 {[%emt 0:00:
02]} Nf6 {[%emt 0:00:03]} 5. h3 {[%emt 0:00:01]} Bc5 {[%emt 0:00:04]} 6. Nxe5 {
[%emt 0:00:02]} Nxe5 {[%emt 0:00:04]} 7. d4 {[%emt 0:00:01]} Nxc4 {[%emt 0:00:
03]} 8. dxc5 {[%emt 0:00:03]} O-O {[%emt 0:00:19]} 9. O-O {[%emt 0:00:01]} Re8
{[%emt 0:00:09]} 10. Qf3 {[%emt 0:00:03]} a6 {[%emt 0:00:31]} 11. Qg3 {[%emt 0:
00:01]} Nxe4 {[%emt 0:00:15]} 12. Nxe4 {[%emt 0:00:04]} Rxe4 {[%emt 0:00:04]}
13. Bxh6 {[%emt 0:00:02]} g6 {[%emt 0:00:04]} 14. Bg5 {[%emt 0:00:04]} Qf8 {
[%emt 0:00:07]} 15. Rae1 {[%emt 0:00:06]} Rxe1 {[%emt 0:00:05]} 16. Rxe1 {
[%emt 0:00:02]} Nxb2 {[%emt 0:00:09]} 17. Qh4 {[%emt 0:00:02]} Qxc5 {[%emt 0:
00:11]} 18. Bf6 {[%emt 0:00:06]} Qh5 {[%emt 0:00:20]} 19. Re8+ {[%emt 0:00:06]}
Kh7 {[%emt 0:00:05]} 20. Rh8# {[%emt 0:00:02] LimeFarActor won by checkmate}
1-0

[Event "Fast Chess"]
[Site "ChessKid.com"]
[Date "2020.04.15"]
[Round "1"]
[White "Hlinka, Patricia"]
[Black "Rosenkranz, Benjamin"]
[Result "0-1"]
[ECO "D00"]
[WhiteElo "956"]
[BlackElo "1140"]
[PlyCount "54"]
[EventDate "2020.??.??"]
[TimeControl "900"]
[WhiteClock "0:11:30"]
[BlackClock "0:12:38"]

1. d4 {[%emt 0:00:02]} d5 {[%emt 0:00:03]} 2. c3 {[%emt 0:00:05]} Nc6 {[%emt 0:
00:05]} 3. e3 {[%emt 0:00:03]} Be6 {[%emt 0:00:06]} 4. Nf3 {[%emt 0:00:05]} Bg4
{[%emt 0:00:04]} 5. a4 {[%emt 0:00:08]} Nf6 {[%emt 0:00:09]} 6. h3 {[%emt 0:00:
06]} Bd7 {[%emt 0:00:05]} 7. a5 {[%emt 0:00:06]} a6 {[%emt 0:00:08]} 8. Na3 {
[%emt 0:00:04]} e6 {[%emt 0:00:05]} 9. b4 {[%emt 0:00:07]} Bd6 {[%emt 0:00:50]}
10. Rg1 {[%emt 0:00:05]} O-O {[%emt 0:00:06]} 11. Rb1 {[%emt 0:00:03]} Qe7 {
[%emt 0:00:17]} 12. Qc2 {[%emt 0:00:07]} g6 {[%emt 0:00:13]} 13. Kd1 {[%emt 0:
00:00]} e5 {[%emt 0:00:09]} 14. dxe5 {[%emt 0:00:03]} Nxe5 {[%emt 0:00:03]} 15.
Nxe5 {[%emt 0:00:04]} Bxe5 {[%emt 0:00:06]} 16. Rb3 {[%emt 0:00:07]} Bd6 {
[%emt 0:00:02]} 17. Nb1 {[%emt 0:00:05]} Be6 {[%emt 0:00:02]} 18. Rb2 {[%emt 0:
00:05]} b6 {[%emt 0:00:09]} 19. axb6 {[%emt 0:00:03]} cxb6 {[%emt 0:00:04]} 20.
Ra2 {[%emt 0:00:06]} b5 {[%emt 0:00:04]} 21. g4 {[%emt 0:00:08]} Bh2 {[%emt 0:
00:13]} 22. Rh1 {[%emt 0:00:05]} Bd6 {[%emt 0:00:05]} 23. Rg1 {[%emt 0:00:04]}
Ne4 {[%emt 0:00:05]} 24. Qb2 {[%emt 0:00:15]} Be5 {[%emt 0:00:06]} 25. h4 {
[%emt 0:00:06]} Bxc3 {[%emt 0:00:04]} 26. Qc2 {[%emt 0:00:09]} f5 {[%emt 0:00:
07]} 27. gxf5 {[%emt 0:00:02]} Bxf5 {[%emt 0:00:03] FineBeamingStage won by
resignation} 0-1

[Event "Fast Chess"]
[Site "ChessKid.com"]
[Date "2020.04.15"]
[Round "2"]
[White "Li, Tobias"]
[Black "Gross, Lukas"]
[Result "0-1"]
[ECO "B06"]
[WhiteElo "1248"]
[BlackElo "1156"]
[PlyCount "46"]
[EventDate "2020.??.??"]
[TimeControl "900"]
[WhiteClock "0:12:33"]
[BlackClock "0:11:23"]

1. e4 {[%emt 0:00:07]} g6 {[%emt 0:00:01]} 2. Nf3 {[%emt 0:00:06]} Bg7 {
[%emt 0:00:02]} 3. Nc3 {[%emt 0:00:02]} Nh6 {[%emt 0:00:01]} 4. Bc4 {[%emt 0:
00:04]} O-O {[%emt 0:00:02]} 5. O-O {[%emt 0:00:09]} e6 {[%emt 0:00:01]} 6. d4
{[%emt 0:00:11]} c6 {[%emt 0:00:03]} 7. Bxh6 {[%emt 0:00:14]} Bxh6 {[%emt 0:00:
03]} 8. Bb3 {[%emt 0:00:05]} d5 {[%emt 0:00:02]} 9. exd5 {[%emt 0:00:02]} cxd5
{[%emt 0:00:01]} 10. Re1 {[%emt 0:00:16]} Na6 {[%emt 0:00:27]} 11. h4 {[%emt 0:
00:12]} Bg7 {[%emt 0:00:10]} 12. Ne5 {[%emt 0:00:09]} Bxe5 {[%emt 0:00:25]} 13.
dxe5 {[%emt 0:00:04]} Nc7 {[%emt 0:00:15]} 14. Ba4 {[%emt 0:00:28]} a6 {
[%emt 0:00:21]} 15. Qd2 {[%emt 0:00:22]} b5 {[%emt 0:00:03]} 16. Bb3 {[%emt 0:
00:01]} b4 {[%emt 0:00:04]} 17. Ne2 {[%emt 0:00:17]} a5 {[%emt 0:00:05]} 18. a3
{[%emt 0:00:06]} bxa3 {[%emt 0:00:04]} 19. bxa3 {[%emt 0:00:01]} Bb7 {[%emt 0:
00:04]} 20. Red1 {[%emt 0:00:05]} Qd7 {[%emt 0:00:05]} 21. Nc3 {[%emt 0:00:03]}
Qc6 {[%emt 0:00:02]} 22. a4 {[%emt 0:00:27]} d4 {[%emt 0:00:02]} 23. Ne2 {
[%emt 0:00:06]} Qxg2# {[%emt 0:00:04] RosyPopularArm won by checkmate} 0-1

[Event "Fast Chess"]
[Site "ChessKid.com"]
[Date "2020.04.15"]
[Round "2"]
[White "Rosenkranz, Benjamin"]
[Black "Sasse, Gabriel"]
[Result "1-0"]
[ECO "C55"]
[WhiteElo "1151"]
[BlackElo "1228"]
[PlyCount "143"]
[EventDate "2020.??.??"]
[TimeControl "900"]
[WhiteClock "0:10:21"]
[BlackClock "0:08:13"]

1. e4 {[%emt 0:00:00]} e5 {[%emt 0:00:00]} 2. Nf3 {[%emt 0:00:02]} Nc6 {
[%emt 0:00:04]} 3. Nc3 {[%emt 0:00:08]} Nf6 {[%emt 0:00:02]} 4. Bc4 {[%emt 0:
00:04]} h6 {[%emt 0:00:02]} 5. d4 {[%emt 0:00:09]} exd4 {[%emt 0:00:04]} 6.
Nxd4 {[%emt 0:00:03]} Nxd4 {[%emt 0:00:02]} 7. Qxd4 {[%emt 0:00:05]} Ng4 {
[%emt 0:00:06]} 8. Be3 {[%emt 0:00:06]} Nxe3 {[%emt 0:00:03]} 9. Qxe3 {[%emt 0:
00:05]} b6 {[%emt 0:00:10]} 10. Qf3 {[%emt 0:00:03]} Qe7 {[%emt 0:00:05]} 11.
Nd5 {[%emt 0:00:06]} Qe6 {[%emt 0:00:08]} 12. b3 {[%emt 0:00:06]} Qg6 {[%emt 0:
00:09]} 13. Nxc7+ {[%emt 0:00:04]} Kd8 {[%emt 0:00:03]} 14. Nxa8 {[%emt 0:00:
04]} Bb4+ {[%emt 0:00:02]} 15. Kd1 {[%emt 0:00:08]} Qd6+ {[%emt 0:00:04]} 16.
Bd3 {[%emt 0:00:08]} Ba6 {[%emt 0:00:05]} 17. Re1 {[%emt 0:00:13]} Bxe1 {
[%emt 0:00:02]} 18. Kxe1 {[%emt 0:00:05]} Bxd3 {[%emt 0:00:08]} 19. cxd3 {
[%emt 0:00:09]} Qc6 {[%emt 0:00:01]} 20. e5 {[%emt 0:00:04]} Qc3+ {[%emt 0:00:
02]} 21. Ke2 {[%emt 0:00:08]} Qxa1 {[%emt 0:00:01]} 22. Ke3 {[%emt 0:00:07]}
Qxa2 {[%emt 0:00:01]} 23. Qb7 {[%emt 0:00:15]} Ke7 {[%emt 0:00:04]} 24. Nc7 {
[%emt 0:00:04]} Qxb3 {[%emt 0:00:03]} 25. Qa6 {[%emt 0:00:07]} Qb2 {[%emt 0:00:
07]} 26. d4 {[%emt 0:00:16]} Qc3+ {[%emt 0:00:03]} 27. Ke4 {[%emt 0:00:04]}
Qxc7 {[%emt 0:00:01]} 28. f3 {[%emt 0:00:05]} Qc6+ {[%emt 0:00:02]} 29. d5 {
[%emt 0:00:04]} Qc2+ {[%emt 0:00:04]} 30. Kd4 {[%emt 0:00:05]} Qxg2 {[%emt 0:
00:07]} 31. f4 {[%emt 0:00:04]} f6 {[%emt 0:00:17]} 32. Qa3+ {[%emt 0:00:07]}
Kf7 {[%emt 0:00:03]} 33. exf6 {[%emt 0:00:08]} Kxf6 {[%emt 0:00:03]} 34. Qd6+ {
[%emt 0:00:08]} Kf7 {[%emt 0:00:04]} 35. f5 {[%emt 0:00:03]} Qg4+ {[%emt 0:00:
05]} 36. Ke5 {[%emt 0:00:12]} Qh3 {[%emt 0:00:11]} 37. Qxd7+ {[%emt 0:00:06]}
Kg8 {[%emt 0:00:04]} 38. Ke6 {[%emt 0:00:05]} Qe3+ {[%emt 0:00:04]} 39. Kd6 {
[%emt 0:00:04]} Qa3+ {[%emt 0:00:08]} 40. Kc7 {[%emt 0:00:08]} Qc3+ {[%emt 0:
00:04]} 41. Kb7 {[%emt 0:00:03]} Qh3 {[%emt 0:00:15]} 42. Qd8+ {[%emt 0:00:08]}
Kh7 {[%emt 0:00:01]} 43. Qd7 {[%emt 0:00:03]} Rf8 {[%emt 0:00:06]} 44. Qa4 {
[%emt 0:00:20]} Qxf5 {[%emt 0:00:04]} 45. d6 {[%emt 0:00:03]} Qd7+ {[%emt 0:00:
02]} 46. Qxd7 {[%emt 0:00:05]} Kg6 {[%emt 0:00:01]} 47. Qe7 {[%emt 0:00:06]}
Rf7 {[%emt 0:00:02]} 48. Qxf7+ {[%emt 0:00:04]} Kxf7 {[%emt 0:00:02]} 49. d7 {
[%emt 0:00:02]} Ke7 {[%emt 0:00:03]} 50. Kc7 {[%emt 0:00:01]} g5 {[%emt 0:00:
05]} 51. d8=Q+ {[%emt 0:00:02]} Ke6 {[%emt 0:00:01]} 52. Qh8 {[%emt 0:00:03]}
a5 {[%emt 0:00:02]} 53. Qxh6+ {[%emt 0:00:02]} Kd5 {[%emt 0:00:01]} 54. Qxb6 {
[%emt 0:00:02]} Ke4 {[%emt 0:00:02]} 55. Qxa5 {[%emt 0:00:03]} g4 {[%emt 0:00:
01]} 56. Qg5 {[%emt 0:00:05]} Kf3 {[%emt 0:00:04]} 57. Qh5 {[%emt 0:00:09]} Kf4
{[%emt 0:00:11]} 58. h3 {[%emt 0:00:03]} g3 {[%emt 0:00:01]} 59. Qg6 {[%emt 0:
00:04]} g2 {[%emt 0:00:07]} 60. Qxg2 {[%emt 0:00:11]} Ke5 {[%emt 0:00:01]} 61.
Qg4 {[%emt 0:00:03]} Kf6 {[%emt 0:00:01]} 62. Qh5 {[%emt 0:00:04]} Ke6 {
[%emt 0:00:05]} 63. Qa5 {[%emt 0:00:02]} Kf6 {[%emt 0:00:02]} 64. h4 {[%emt 0:
00:03]} Kg7 {[%emt 0:00:03]} 65. h5 {[%emt 0:00:02]} Kf6 {[%emt 0:00:02]} 66.
Kb7 {[%emt 0:00:06]} Kg7 {[%emt 0:00:03]} 67. Qa6 {[%emt 0:00:08]} Kh7 {
[%emt 0:00:02]} 68. Qg6+ {[%emt 0:00:05]} Kh8 {[%emt 0:00:03]} 69. Qe6 {
[%emt 0:00:07]} Kh7 {[%emt 0:00:02]} 70. h6 {[%emt 0:00:03]} Kh8 {[%emt 0:00:
05]} 71. Qd7 {[%emt 0:00:14]} Kg8 {[%emt 0:00:05]} 72. Qg7# {[%emt 0:00:02]
FineBeamingStage won by checkmate} 1-0

[Event "Fast Chess"]
[Site "ChessKid.com"]
[Date "2020.04.15"]
[Round "2"]
[White "Li, Patrick"]
[Black "Georgiev, Maximilian"]
[Result "0-1"]
[ECO "B01"]
[WhiteElo "993"]
[BlackElo "1367"]
[PlyCount "64"]
[EventDate "2020.??.??"]
[TimeControl "900"]
[WhiteClock "0:12:56"]
[BlackClock "0:10:30"]

1. e4 {[%emt 0:00:00]} d5 {[%emt 0:00:02]} 2. f3 {[%emt 0:00:05]} Nc6 {[%emt 0:
00:05]} 3. Nc3 {[%emt 0:00:06]} Nf6 {[%emt 0:00:03]} 4. e5 {[%emt 0:00:06]}
Nxe5 {[%emt 0:00:03]} 5. Nb5 {[%emt 0:00:16]} Bd7 {[%emt 0:00:04]} 6. Nc3 {
[%emt 0:00:07]} d4 {[%emt 0:00:03]} 7. Ne4 {[%emt 0:00:09]} Nxe4 {[%emt 0:00:
02]} 8. fxe4 {[%emt 0:00:05]} Bg4 {[%emt 0:00:02]} 9. Be2 {[%emt 0:00:05]} Bxe2
{[%emt 0:00:03]} 10. Qxe2 {[%emt 0:00:04]} e6 {[%emt 0:00:03]} 11. Qb5+ {
[%emt 0:00:07]} Nd7 {[%emt 0:00:06]} 12. Qxb7 {[%emt 0:00:03]} Be7 {[%emt 0:00:
07]} 13. Qc6 {[%emt 0:00:08]} O-O {[%emt 0:00:05]} 14. Qc4 {[%emt 0:00:16]} Ne5
{[%emt 0:00:03]} 15. Qe2 {[%emt 0:00:18]} Nc6 {[%emt 0:00:11]} 16. d3 {[%emt 0:
00:08]} Nb4 {[%emt 0:00:06]} 17. a3 {[%emt 0:00:11]} Nc6 {[%emt 0:00:02]} 18.
Qg4 {[%emt 0:00:05]} Kh8 {[%emt 0:00:09]} 19. c3 {[%emt 0:00:20]} Bh4+ {
[%emt 0:00:03]} 20. g3 {[%emt 0:00:11]} Bf6 {[%emt 0:00:02]} 21. Nh3 {[%emt 0:
00:21]} dxc3 {[%emt 0:00:04]} 22. bxc3 {[%emt 0:00:05]} Bxc3+ {[%emt 0:00:01]}
23. Kf1 {[%emt 0:00:06]} Bxa1 {[%emt 0:00:02]} 24. Ke2 {[%emt 0:00:11]} Nd4+ {
[%emt 0:00:05]} 25. Kd2 {[%emt 0:00:04]} Nb3+ {[%emt 0:00:05]} 26. Kc2 {
[%emt 0:00:02]} Nxc1 {[%emt 0:00:02]} 27. Rxc1 {[%emt 0:00:07]} Bf6 {[%emt 0:
00:04]} 28. Kb3 {[%emt 0:00:09]} Qxd3+ {[%emt 0:00:03]} 29. Rc3 {[%emt 0:00:07]
} Qb5+ {[%emt 0:00:05]} 30. Kc2 {[%emt 0:00:10]} Bxc3 {[%emt 0:00:02]} 31. Kxc3
{[%emt 0:00:09]} Qc5+ {[%emt 0:00:03]} 32. Kb3 {[%emt 0:00:10]} Rab8+ {[%emt 0:
00:04] TallSnazzyBall won by resignation} 0-1

[Event "Fast Chess"]
[Site "ChessKid.com"]
[Date "2020.04.15"]
[Round "2"]
[White "Hlinka, Patricia"]
[Black "Hlinka, Patrick"]
[Result "0-1"]
[ECO "A40"]
[WhiteElo "951"]
[BlackElo "1099"]
[PlyCount "44"]
[EventDate "2020.??.??"]
[TimeControl "900"]
[WhiteClock "0:13:27"]
[BlackClock "0:13:07"]

1. d4 {[%emt 0:00:00]} e5 {[%emt 0:00:08]} 2. dxe5 {[%emt 0:00:04]} Bc5 {
[%emt 0:00:00]} 3. b3 {[%emt 0:00:04]} f6 {[%emt 0:00:04]} 4. exf6 {[%emt 0:00:
03]} Qxf6 {[%emt 0:00:02]} 5. Qd2 {[%emt 0:00:06]} Qxf2+ {[%emt 0:00:04]} 6.
Kd1 {[%emt 0:00:04]} Qxf1+ {[%emt 0:00:02]} 7. Qe1 {[%emt 0:00:09]} Qxg2 {
[%emt 0:00:02]} 8. Nf3 {[%emt 0:00:05]} Bf2 {[%emt 0:00:11]} 9. Qd2 {[%emt 0:
00:07]} Qxh1+ {[%emt 0:00:04]} 10. Qe1 {[%emt 0:00:05]} Bxe1 {[%emt 0:00:08]}
11. Nxe1 {[%emt 0:00:07]} Qd5+ {[%emt 0:00:02]} 12. Nd3 {[%emt 0:00:05]} Qd4 {
[%emt 0:00:04]} 13. e3 {[%emt 0:00:02]} Qxa1 {[%emt 0:00:03]} 14. Bb2 {[%emt 0:
00:07]} Qxb1+ {[%emt 0:00:05]} 15. Kd2 {[%emt 0:00:03]} Nf6 {[%emt 0:00:05]}
16. Nc5 {[%emt 0:00:06]} Qxb2 {[%emt 0:00:04]} 17. a4 {[%emt 0:00:08]} d6 {
[%emt 0:00:06]} 18. Nd3 {[%emt 0:00:03]} Ne4+ {[%emt 0:00:03]} 19. Ke2 {
[%emt 0:00:11]} Qc3 {[%emt 0:00:04]} 20. a5 {[%emt 0:00:03]} Bg4+ {[%emt 0:00:
08]} 21. Kf1 {[%emt 0:00:04]} Qd2 {[%emt 0:00:05]} 22. Nb4 {[%emt 0:00:07]}
Qf2# {[%emt 0:00:02] GoldMusicalTaxi won by checkmate} 0-1

[Event "Fast Chess"]
[Site "ChessKid.com"]
[Date "2020.04.15"]
[Round "3"]
[White "Gross, Lukas"]
[Black "Rosenkranz, Benjamin"]
[Result "1-0"]
[ECO "A00"]
[WhiteElo "1164"]
[BlackElo "1144"]
[PlyCount "53"]
[EventDate "2020.??.??"]
[TimeControl "900"]
[WhiteClock "0:11:05"]
[BlackClock "0:12:09"]

1. g3 {[%emt 0:00:00]} e5 {[%emt 0:00:02]} 2. Bg2 {[%emt 0:00:03]} Nc6 {
[%emt 0:00:02]} 3. Nh3 {[%emt 0:00:03]} d6 {[%emt 0:00:03]} 4. O-O {[%emt 0:00:
01]} Nf6 {[%emt 0:00:07]} 5. c3 {[%emt 0:00:04]} Bd7 {[%emt 0:00:05]} 6. e3 {
[%emt 0:00:02]} Qc8 {[%emt 0:00:03]} 7. Ng5 {[%emt 0:00:03]} Bg4 {[%emt 0:00:
10]} 8. f3 {[%emt 0:00:07]} Be6 {[%emt 0:00:09]} 9. d4 {[%emt 0:00:06]} exd4 {
[%emt 0:00:03]} 10. exd4 {[%emt 0:00:04]} Be7 {[%emt 0:00:06]} 11. d5 {[%emt 0:
00:02]} Nxd5 {[%emt 0:00:04]} 12. Nxe6 {[%emt 0:00:05]} Qxe6 {[%emt 0:00:07]}
13. f4 {[%emt 0:00:02]} Nb6 {[%emt 0:00:07]} 14. Re1 {[%emt 0:00:08]} Qf6 {
[%emt 0:00:16]} 15. b3 {[%emt 0:00:17]} O-O {[%emt 0:00:05]} 16. Qd2 {[%emt 0:
00:17]} d5 {[%emt 0:00:15]} 17. Bb2 {[%emt 0:00:02]} Qg6 {[%emt 0:00:06]} 18.
c4 {[%emt 0:00:06]} Rad8 {[%emt 0:00:11]} 19. cxd5 {[%emt 0:00:08]} Nb8 {
[%emt 0:00:05]} 20. Rxe7 {[%emt 0:00:15]} Na8 {[%emt 0:00:23]} 21. Be4 {
[%emt 0:00:23]} Qg4 {[%emt 0:00:20]} 22. Qf2 {[%emt 0:00:14]} Qd1+ {[%emt 0:00:
16]} 23. Kg2 {[%emt 0:00:04]} Rd6 {[%emt 0:00:14]} 24. Bf3 {[%emt 0:00:06]} Rb6
{[%emt 0:00:09]} 25. Bxd1 {[%emt 0:00:05]} Rd8 {[%emt 0:00:18]} 26. Qd4 {
[%emt 0:00:03]} f5 {[%emt 0:00:08]} 27. Qxg7# {[%emt 0:00:02] RosyPopularArm
won by checkmate} 1-0

[Event "Fast Chess"]
[Site "ChessKid.com"]
[Date "2020.04.15"]
[Round "3"]
[White "Sasse, Gabriel"]
[Black "Li, Tobias"]
[Result "1/2-1/2"]
[ECO "C50"]
[WhiteElo "1228"]
[BlackElo "1248"]
[PlyCount "130"]
[EventDate "2020.??.??"]
[TimeControl "900"]
[WhiteClock "0:08:45"]
[BlackClock "0:11:33"]

1. e4 {[%emt 0:00:02]} e5 {[%emt 0:00:07]} 2. Nf3 {[%emt 0:00:02]} Nc6 {
[%emt 0:00:03]} 3. Bc4 {[%emt 0:00:04]} Bc5 {[%emt 0:00:05]} 4. O-O {[%emt 0:
00:02]} Nf6 {[%emt 0:00:04]} 5. Nxe5 {[%emt 0:00:02]} Nxe5 {[%emt 0:00:02]} 6.
d4 {[%emt 0:00:02]} Nxc4 {[%emt 0:00:01]} 7. dxc5 {[%emt 0:00:01]} b6 {[%emt 0:
00:13]} 8. cxb6 {[%emt 0:00:02]} Nxb6 {[%emt 0:00:01]} 9. b3 {[%emt 0:00:02]}
Nxe4 {[%emt 0:00:02]} 10. Re1 {[%emt 0:00:03]} d5 {[%emt 0:00:02]} 11. c4 {
[%emt 0:00:03]} O-O {[%emt 0:00:15]} 12. cxd5 {[%emt 0:00:06]} Qxd5 {[%emt 0:
00:02]} 13. Qxd5 {[%emt 0:00:02]} Nxd5 {[%emt 0:00:01]} 14. Rxe4 {[%emt 0:00:
01]} Bf5 {[%emt 0:00:03]} 15. Re5 {[%emt 0:00:03]} Bxb1 {[%emt 0:00:02]} 16.
Rxd5 {[%emt 0:00:03]} Rfe8 {[%emt 0:00:05]} 17. h3 {[%emt 0:00:07]} Be4 {
[%emt 0:00:07]} 18. Rd4 {[%emt 0:00:04]} Bg6 {[%emt 0:00:04]} 19. Bg5 {[%emt 0:
00:03]} Re5 {[%emt 0:00:04]} 20. Rad1 {[%emt 0:00:05]} h6 {[%emt 0:00:05]} 21.
Bf4 {[%emt 0:00:03]} Ree8 {[%emt 0:00:05]} 22. Bxc7 {[%emt 0:00:03]} Re2 {
[%emt 0:00:07]} 23. Rd8+ {[%emt 0:00:06]} Rxd8 {[%emt 0:00:02]} 24. Bxd8 {
[%emt 0:00:01]} Rxa2 {[%emt 0:00:03]} 25. Re1 {[%emt 0:00:08]} Rb2 {[%emt 0:00:
08]} 26. Re7 {[%emt 0:00:06]} a6 {[%emt 0:00:06]} 27. Ra7 {[%emt 0:00:02]} Rxb3
{[%emt 0:00:05]} 28. Rxa6 {[%emt 0:00:03]} Rb1+ {[%emt 0:00:09]} 29. Kh2 {
[%emt 0:00:02]} Rb2 {[%emt 0:00:12]} 30. Ra8 {[%emt 0:00:03]} Kh7 {[%emt 0:00:
04]} 31. Bh4 {[%emt 0:00:07]} Be4 {[%emt 0:00:09]} 32. Ra7 {[%emt 0:00:06]} g5
{[%emt 0:00:20]} 33. Rxf7+ {[%emt 0:00:04]} Kg6 {[%emt 0:00:03]} 34. Re7 {
[%emt 0:00:02]} gxh4 {[%emt 0:00:10]} 35. Rxe4 {[%emt 0:00:02]} Rxf2 {[%emt 0:
00:01]} 36. Rxh4 {[%emt 0:00:03]} Kg5 {[%emt 0:00:04]} 37. Ra4 {[%emt 0:00:03]}
Rf5 {[%emt 0:00:08]} 38. Kg3 {[%emt 0:00:05]} h5 {[%emt 0:00:16]} 39. h4+ {
[%emt 0:00:02]} Kg6 {[%emt 0:00:08]} 40. Ra6+ {[%emt 0:00:02]} Kg7 {[%emt 0:00:
02]} 41. Ra7+ {[%emt 0:00:05]} Kg6 {[%emt 0:00:03]} 42. Ra8 {[%emt 0:00:02]}
Kg7 {[%emt 0:00:05]} 43. Ra6 {[%emt 0:00:02]} Rb5 {[%emt 0:00:09]} 44. Kh3 {
[%emt 0:00:04]} Rb3+ {[%emt 0:00:03]} 45. g3 {[%emt 0:00:02]} Rf3 {[%emt 0:00:
10]} 46. Ra5 {[%emt 0:00:02]} Kg6 {[%emt 0:00:05]} 47. Kg2 {[%emt 0:00:05]} Rf6
{[%emt 0:00:04]} 48. Kh3 {[%emt 0:00:04]} Rf3 {[%emt 0:00:09]} 49. Rg5+ {
[%emt 0:00:02]} Kh6 {[%emt 0:00:08]} 50. Rg8 {[%emt 0:00:05]} Kh7 {[%emt 0:00:
04]} 51. Re8 {[%emt 0:00:06]} Rf7 {[%emt 0:00:10]} 52. Kg2 {[%emt 0:00:04]} Rf6
{[%emt 0:00:16]} 53. Re4 {[%emt 0:00:04]} Rf7 {[%emt 0:00:18]} 54. g4 {[%emt 0:
00:02]} Rg7 {[%emt 0:00:06]} 55. Kh3 {[%emt 0:00:06]} hxg4+ {[%emt 0:00:03]}
56. Rxg4 {[%emt 0:00:03]} Rxg4 {[%emt 0:00:01]} 57. Kxg4 {[%emt 0:00:01]} Kg6 {
[%emt 0:00:18]} 58. h5+ {[%emt 0:00:03]} Kh6 {[%emt 0:00:02]} 59. Kh4 {[%emt 0:
00:01]} Kh7 {[%emt 0:00:03]} 60. Kg5 {[%emt 0:00:01]} Kg7 {[%emt 0:00:02]} 61.
h6+ {[%emt 0:00:02]} Kh7 {[%emt 0:00:01]} 62. Kh5 {[%emt 0:00:01]} Kh8 {
[%emt 0:00:02]} 63. Kg6 {[%emt 0:00:03]} Kg8 {[%emt 0:00:01]} 64. h7+ {[%emt 0:
00:04]} Kh8 {[%emt 0:00:02]} 65. Kf7 {[%emt 0:00:02]} Kxh7 {[%emt 0:00:01]
Game drawn - insufficient material} 1/2-1/2

[Event "Fast Chess"]
[Site "ChessKid.com"]
[Date "2020.04.15"]
[Round "3"]
[White "Li, Patrick"]
[Black "Hlinka, Patricia"]
[Result "1/2-1/2"]
[ECO "C40"]
[WhiteElo "992"]
[BlackElo "952"]
[PlyCount "32"]
[EventDate "2020.??.??"]
[TimeControl "900"]
[WhiteClock "0:12:41"]
[BlackClock "0:12:40"]

1. e4 {[%emt 0:00:00]} e5 {[%emt 0:00:01]} 2. Nf3 {[%emt 0:00:01]} f6 {[%emt 0:
00:03]} 3. Nc3 {[%emt 0:00:05]} d6 {[%emt 0:00:03]} 4. Bb5+ {[%emt 0:00:18]} c6
{[%emt 0:00:08]} 5. Bc4 {[%emt 0:00:05]} g5 {[%emt 0:00:10]} 6. Bxg8 {[%emt 0:
00:02]} Rxg8 {[%emt 0:00:04]} 7. O-O {[%emt 0:00:06]} Rh8 {[%emt 0:00:03]} 8.
Re1 {[%emt 0:00:09]} a5 {[%emt 0:00:06]} 9. b3 {[%emt 0:00:12]} c5 {[%emt 0:00:
05]} 10. Nb5 {[%emt 0:00:20]} Bd7 {[%emt 0:00:08]} 11. Nc3 {[%emt 0:00:10]} Bc8
{[%emt 0:00:03]} 12. Nd5 {[%emt 0:00:08]} Rg8 {[%emt 0:00:07]} 13. Nh4 {
[%emt 0:00:20]} gxh4 {[%emt 0:00:04]} 14. Qf3 {[%emt 0:00:03]} Bg4 {[%emt 0:00:
13]} 15. Qxf6 {[%emt 0:00:19]} Qxf6 {[%emt 0:00:49]} 16. Nxf6+ {[%emt 0:00:05]}
Kf7 {[%emt 0:00:13] Game drawn by agreement} 1/2-1/2

[Event "Fast Chess"]
[Site "ChessKid.com"]
[Date "2020.04.15"]
[Round "4"]
[White "Rosenkranz, Benjamin"]
[Black "Georgiev, Maximilian"]
[Result "0-1"]
[ECO "B01"]
[WhiteElo "1141"]
[BlackElo "1374"]
[PlyCount "102"]
[EventDate "2020.??.??"]
[TimeControl "900"]
[WhiteClock "0:12:36"]
[BlackClock "0:10:14"]

1. e4 {[%emt 0:00:00]} d5 {[%emt 0:00:02]} 2. e5 {[%emt 0:00:06]} Nc6 {[%emt 0:
00:03]} 3. Nf3 {[%emt 0:00:06]} Bg4 {[%emt 0:00:05]} 4. Bb5 {[%emt 0:00:05]} a6
{[%emt 0:00:05]} 5. Bxc6+ {[%emt 0:00:03]} bxc6 {[%emt 0:00:01]} 6. O-O {
[%emt 0:00:05]} e6 {[%emt 0:00:03]} 7. h3 {[%emt 0:00:05]} Bh5 {[%emt 0:00:03]}
8. Nc3 {[%emt 0:00:06]} Be7 {[%emt 0:00:05]} 9. Qe1 {[%emt 0:00:06]} Bxf3 {
[%emt 0:00:03]} 10. gxf3 {[%emt 0:00:03]} Bb4 {[%emt 0:00:04]} 11. a3 {[%emt 0:
00:05]} Ba5 {[%emt 0:00:02]} 12. b4 {[%emt 0:00:03]} Bb6 {[%emt 0:00:01]} 13.
a4 {[%emt 0:00:04]} Qg5+ {[%emt 0:00:04]} 14. Kh1 {[%emt 0:00:12]} Ne7 {
[%emt 0:00:04]} 15. d4 {[%emt 0:00:02]} Qg6 {[%emt 0:00:04]} 16. Be3 {[%emt 0:
00:07]} Qxc2 {[%emt 0:00:04]} 17. a5 {[%emt 0:00:08]} Qxc3 {[%emt 0:00:03]} 18.
Rg1 {[%emt 0:00:07]} Qxe1 {[%emt 0:00:02]} 19. Rgxe1 {[%emt 0:00:05]} Ba7 {
[%emt 0:00:02]} 20. Rg1 {[%emt 0:00:11]} O-O {[%emt 0:00:02]} 21. Bh6 {[%emt 0:
00:07]} Kh8 {[%emt 0:00:03]} 22. Bxg7+ {[%emt 0:00:06]} Kg8 {[%emt 0:00:02]}
23. Bxf8+ {[%emt 0:00:03]} Kxf8 {[%emt 0:00:00]} 24. Raf1 {[%emt 0:00:13]} Bxd4
{[%emt 0:00:04]} 25. Rg4 {[%emt 0:00:06]} Bxe5 {[%emt 0:00:03]} 26. Rh4 {
[%emt 0:00:02]} Kg8 {[%emt 0:00:09]} 27. Rg1+ {[%emt 0:00:02]} Kh8 {[%emt 0:00:
01]} 28. f4 {[%emt 0:00:09]} Bd4 {[%emt 0:00:04]} 29. Rf1 {[%emt 0:00:08]} Rg8
{[%emt 0:00:06]} 30. f5 {[%emt 0:00:04]} Nxf5 {[%emt 0:00:03]} 31. Rh5 {
[%emt 0:00:08]} Rg6 {[%emt 0:00:10]} 32. f3 {[%emt 0:00:26]} Ng3+ {[%emt 0:00:
03]} 33. Kg2 {[%emt 0:00:07]} Nxh5+ {[%emt 0:00:02]} 34. Kh2 {[%emt 0:00:13]}
Be5+ {[%emt 0:00:02]} 35. Kh1 {[%emt 0:00:04]} Ng3+ {[%emt 0:00:01]} 36. Kg2 {
[%emt 0:00:02]} Nxf1+ {[%emt 0:00:02]} 37. Kxf1 {[%emt 0:00:02]} Bd6 {[%emt 0:
00:02]} 38. Kf2 {[%emt 0:00:05]} Bxb4 {[%emt 0:00:01]} 39. h4 {[%emt 0:00:04]}
Bxa5 {[%emt 0:00:01]} 40. h5 {[%emt 0:00:04]} Rh6 {[%emt 0:00:01]} 41. Kg2 {
[%emt 0:00:07]} Rxh5 {[%emt 0:00:01]} 42. f4 {[%emt 0:00:02]} Rf5 {[%emt 0:00:
03]} 43. Kg3 {[%emt 0:00:02]} c5 {[%emt 0:00:03]} 44. Kg4 {[%emt 0:00:03]} Rf6
{[%emt 0:00:04]} 45. Kg5 {[%emt 0:00:06]} Rg6+ {[%emt 0:00:01]} 46. Kh5 {
[%emt 0:00:04]} c4 {[%emt 0:00:03]} 47. f5 {[%emt 0:00:05]} exf5 {[%emt 0:00:
03]} 48. Kh4 {[%emt 0:00:04]} c3 {[%emt 0:00:02]} 49. Kh3 {[%emt 0:00:03]} c2 {
[%emt 0:00:01]} 50. Kh4 {[%emt 0:00:03]} c1=Q {[%emt 0:00:02]} 51. Kh3 {
[%emt 0:00:04]} Qh1# {[%emt 0:00:01] TallSnazzyBall won by checkmate} 0-1